Cogmind - Beta 14 @@@ ROGUE MODE // 2025.04.26 @ 01:08:51 Player: jumpy Result: Destroyed by H-55 Commando with Gauss Rifle Performance ------------- Evolutions (2) 1000 Regions Visited (6) 1200 Robots Destroyed (27) 135 Value Destroyed (426) 426 Prototype IDs (23) 460 Alien Tech Used (0) 0 Bonus (500) 500 TOTAL SCORE: 3721 Bonus ------- Entered Garrisons 200 Aligned with FarCom 300 Cogmind --------- Core Integrity 0/550 Matter 300/300 Energy 79/100 System Corruption 0% Temperature Warm (124) Movement Core (700) Ox13 Location -8/Garrison Parts ------- > --- POWER (1) -------- (None) > --- PROPULSION (4) --- (None) > --- UTILITY (4) ------ High-capacity Storage Unit Trap Reconfigurator > --- WEAPON (2) ------- (None) > --- INVENTORY (20) --- (None) Peak State ------------ > --- POWER ------------ Light Ion Engine > --- PROPULSION ------- Wheel Compact Wheel Compact Wheel > --- UTILITY ---------- High-capacity Storage Unit Seismic Detector Trap Reconfigurator > --- WEAPON ----------- Light Cannon Enhanced Flamer > --- INVENTORY -------- Medium Laser Rocket Launcher [Rating: 19] Favorites ----------- Power Light Ion Engine Engine Light Ion Engine Propulsion Light Treads Treads Light Treads Wheel Compact Wheel Utility Seismic Detector Device Seismic Detector Storage High-capacity Storage Unit Weapon Light Cannon Energy Gun Medium Laser Ballistic Cannon Light Cannon Launcher Grenade Launcher Special Weapon Enhanced Flamer Build | -11 -10 -10 -10 -9 -8 -8 ------- Run | Yrd Mat Min Exi Min Mat Gar Slots Evolved 4 | . . . . . 4 . Power . | . . . . . . . Propulsion 2 | . . . . . 2 . Utility 2 | . . . . . 2 . Weapon . | . . . . . . . Parts Attached 33 | 8 1 12 . . 5 7 Power 4 | 2 . 1 . . . 1 Engine 4 | 2 . 1 . . . 1 Core . | . . . . . . . Reactor . | . . . . . . . Propulsion 8 | 2 . 4 . . 1 1 Treads 3 | 2 . . . . . 1 Leg . | . . . . . . . Wheel 5 | . . 4 . . 1 . Hover . | . . . . . . . Flight . | . . . . . . . Utility 4 | 2 . 1 . . 1 . Device 2 | 1 . . . . 1 . Storage 2 | 1 . 1 . . . . Processor . | . . . . . . . Hackware . | . . . . . . . Protection . | . . . . . . . Artifact . | . . . . . . . Weapon 17 | 2 1 6 . . 3 5 Energy Gun 6 | 2 . 1 . . 1 2 Energy Cannon . | . . . . . . . Ballistic Gun . | . . . . . . . Ballistic Cannon 6 | . 1 2 . . 2 1 Launcher 3 | . . 2 . . . 1 Special Weapon 2 | . . 1 . . . 1 Impact Weapon . | . . . . . . . Slashing Weapon . | . . . . . . . Piercing Weapon . | . . . . . . . Special Melee Weapon . | . . . . . . . Unidentified Prototypes . | . . . . . . . Parts Lost 17 | . . 4 . . 1 12 Power 3 | . . 1 . . . 2 Propulsion 6 | . . 2 . . 1 3 Utility 1 | . . . . . . 1 Weapon 7 | . . 1 . . . 6 Highest Loss Streak 8 | . . 4 . . 1 8 To Critical Strikes . | . . . . . . . Average Slot Usage (%) 91 | . 100 99 100 100 80 59 Engine 12 | . 14 13 14 14 9 6 Treads 9 | . 28 11 . . . 1 Wheel 15 | . . 15 28 28 26 11 Device 14 | . 14 14 14 14 18 15 Storage 12 | . 14 14 14 14 9 9 Energy Gun 7 | . 16 9 . . 4 1 Ballistic Cannon 11 | . 11 10 14 14 13 12 Launcher 1 | . . 2 . . . . Special Weapon 4 | . . 5 14 14 . . Peak Build Rating 19 | 7 7 9 10 10 19 17 Average Rating 9 | 5 7 7 9 10 17 15 On Entrance 8 | . 7 7 9 10 10 17 Naked Turns . | . . . . . . . Heaviest Build 52 | 15 16 50 49 49 52 52 Greatest Support 42 | 40 40 40 26 26 42 26 Greatest Overweight (x) 14 | . . 1 1 1 1 14 Average Overweight (x) . | . . . 1 1 1 1 Largest Inventory Capacity 20 | 8 8 20 20 20 20 20 Average Capacity 15 | 7 8 14 20 20 20 20 Most Carried 8 | 3 5 8 5 6 4 3 Average Carried 4 | 2 4 5 4 5 2 2 Final Capacity 20 | 8 8 20 20 20 20 20 Final Carried 5 | 3 5 4 5 5 3 . Class Distribution -------------------- 94% | Mutant 5% | Scavenger-Mutant Dominant Class ---------------- Mutant | -10/Materials Mutant | -10/Mines Mutant | -10/Exiles Mutant | -9/Mines Scavenger-Mutant | -8/Materials Mutant | -8/Garrison Resources | -11 -10 -10 -10 -9 -8 -8 ----------- Run | Yrd Mat Min Exi Min Mat Gar Matter Collected 642 | 185 3 307 . . . 147 Remotely . | . . . . . . . Salvage Created 406 | 47 . 203 . . . 156 Parts 33 | 5 . 15 . . . 13 Haulers Intercepted . | . . . . . . . Recyclers Shooed . | . . . . . . . Parts Field Recycled . | . . . . . . . Retrieved Matter . | . . . . . . . Parts Self-Destructed . | . . . . . . . Prevented . | . . . . . . . Kills | -11 -10 -10 -10 -9 -8 -8 ------- Run | Yrd Mat Min Exi Min Mat Gar Combat Hostiles Destroyed 23 | . . 12 . . . 11 Guns 8 | . . 5 . . . 3 Cannons 5 | . . 4 . . . 1 AOE 10 | . . 3 . . . 7 Classes Destroyed 5 | 1 . 3 . . . 1 Tunneler 3 | 3 . . . . . . Recycler 1 | . . 1 . . . . Swarmer 17 | . . 9 . . . 8 Grunt 3 | . . 2 . . . 1 Sentry 2 | . . . . . . 2 Best Kill Streak 10 | 1 . 4 . . . 10 Combat Bots Only 10 | . . 3 . . . 10 Max Kills in Single Turn 3 | 1 . 2 . . . 3 Gunslinging . | . . . . . . . Exploded 3 | . . 2 . . . 3 Melee . | . . . . . . . Uniques/NPCs Destroyed 1 | . . 1 . . . . YI-UF0 (-10/Mines) Combat | -11 -10 -10 -10 -9 -8 -8 -------- Run | Yrd Mat Min Exi Min Mat Gar Hostile Shots Fired 193 | . 6 53 . . 2 132 Missed 46 | . 1 15 . . 1 29 Damage Taken 2159 | . 62 578 . . 14 1505 Core 654 | . . 98 . . . 556 Absorbed by Shields . | . . . . . . . Core Remaining (%) 80 | 100 . . . 60 . . Volleys Fired 74 | 7 7 27 . . . 33 Largest 2 | 2 2 2 . . . 2 Hottest 130 | 100 85 115 . . . 130 Shots Fired 113 | 14 14 46 . . . 39 Gun 64 | 14 7 21 . . . 22 Cannon 34 | . 7 14 . . . 13 Launcher 7 | . . 4 . . . 3 Special 8 | . . 7 . . . 1 Kinetic 34 | . 7 14 . . . 13 Thermal 72 | 14 7 28 . . . 23 Explosive 7 | . . 4 . . . 3 Electromagnetic . | . . . . . . . Robot Hit Streak 9 | 3 6 6 . . . 9 Robot Miss Streak 3 | 3 1 1 . . . 2 Penetration Max . | . . . . . . . Secondary Targets . | . . . . . . . Shots Hit Robots 68 | 7 9 29 . . . 23 Core Hits 39 | 3 . 17 . . . 19 Critical Kills . | . . . . . . . Critical Parts Destroyed . | . . . . . . . Critical Strikes 2 | 1 1 . . . . . Burn 1 | 1 . . . . . . Blast 1 | . 1 . . . . . Melee Attacks . | . . . . . . . Impact . | . . . . . . . Slashing . | . . . . . . . Piercing . | . . . . . . . Sneak Attacks . | . . . . . . . Combat Hostiles . | . . . . . . . Follow-up Attacks . | . . . . . . . Damage Inflicted 1632 | 93 142 634 . . . 763 Guns 537 | 87 38 175 . . . 237 Cannons 430 | . 104 194 . . . 132 Explosions 592 | . . 198 . . . 394 Melee . | . . . . . . . Ramming 6 | 6 . . . . . . Kinetic 430 | . 104 194 . . . 132 Thermal 604 | 87 38 242 . . . 237 Explosive 592 | . . 198 . . . 394 Electromagnetic . | . . . . . . . Impact . | . . . . . . . Slashing . | . . . . . . . Piercing . | . . . . . . . Highest Corruption . | . . . . . . . Average Corruption . | . . . . . . . Corruption Purged . | . . . . . . . Corruption Blocked . | . . . . . . . Overload Shots . | . . . . . . . Overflow Damage 46 | . . 2 . . . 44 Projectiles 2 | . . 2 . . . . Explosions 44 | . . . . . . 44 Melee . | . . . . . . . Knockbacks 1 | . 1 . . . . . Impact . | . . . . . . . Kinetic 1 | . 1 . . . . . Secondary . | . . . . . . . Self-Inflicted Damage 44 | . . 44 . . . . Shots 2 | . . 2 . . . . Rammed 3 | 3 . . . . . . Targets Rammed 3 | 3 . . . . . . Kicked . | . . . . . . . Crushed . | . . . . . . . Highest Temperature 255 | 118 144 220 . . . 255 Average Temperature 80 | 37 65 81 . . . 108 Received Heat Transfer 747 | . . 90 . . . 657 Effects 4 | . . 3 . . . 1 Interference 4 | . . 3 . . . 1 Siege Activations . | . . . . . . . Robots Corrupted . | . . . . . . . Combat Hostiles . | . . . . . . . Parts Fried . | . . . . . . . Impact Corruptions . | . . . . . . . Robots Melted . | . . . . . . . Combat Hostiles . | . . . . . . . Parts Melted . | . . . . . . . Heat Transferred 2071 | 333 111 998 . . . 629 Parts Sabotaged . | . . . . . . . Parts Stolen . | . . . . . . . Parts Stripped . | . . . . . . . Power Chain Reactions . | . . . . . . . Alert | -11 -10 -10 -10 -9 -8 -8 ------- Run | Yrd Mat Min Exi Min Mat Gar Peak Influence 246 | 15 24 246 . . 4 165 Initial 9 | . 9 9 . . . 2 Average 54 | 6 16 79 . . . 55 Maximum Alert Level 1 | . . 1 . . . . Low Security (%) 93 | 100 100 87 . 100 100 100 Level 1 6 | . . 12 . . . . Level 2 . | . . . . . . . Level 3 . | . . . . . . . Level 4 . | . . . . . . . Level 5 . | . . . . . . . High Security . | . . . . . . . Max Security . | . . . . . . . Squads Dispatched 1 | . . . . . 1 . Investigation . | . . . . . . . Extermination . | . . . . . . . Reinforcement 1 | . . . . . 1 . Assault . | . . . . . . . Garrison . | . . . . . . . Intercept . | . . . . . . . Searches Triggered . | . . . . . . . Construction Impeded . | . . . . . . . Haulers Reinforced . | . . . . . . . Active Scanning Responses . | . . . . . . . Cargo Convoy Interrupts . | . . . . . . . Stealth | -11 -10 -10 -10 -9 -8 -8 --------- Run | Yrd Mat Min Exi Min Mat Gar Distress Signals . | . . . . . . . Communications Jammed . | . . . . . . . Distress Signals . | . . . . . . . Times Spotted 36 | . 4 12 . 3 3 14 Peak Tracking Total 10 | . 3 3 . 6 3 10 Tactical Retreats . | . . . . . . . Traps | -11 -10 -10 -10 -9 -8 -8 ------- Run | Yrd Mat Min Exi Min Mat Gar Traps Triggered 1 | . 1 . . . . . Indirectly . | . . . . . . . Trap Hack Attempts . | . . . . . . . Triggered . | . . . . . . . Disarmed . | . . . . . . . Reprogrammed . | . . . . . . . Reused . | . . . . . . . Traps Reconfigurated 3 | . . . . . . 3 Traps Extracted . | . . . . . . . Installed . | . . . . . . . Triggered . | . . . . . . . Machines | -11 -10 -10 -10 -9 -8 -8 ---------- Run | Yrd Mat Min Exi Min Mat Gar Machines Disabled 1 | . . 1 . . . . Max in Single Turn 1 | . . 1 . . . . Machines Repaired . | . . . . . . . Machines Dismantled . | . . . . . . . Machines Sabotaged . | . . . . . . . Overloaded Fab Kills . | . . . . . . . Hacking | -11 -10 -10 -10 -9 -8 -8 --------- Run | Yrd Mat Min Exi Min Mat Gar Machines Accessed 2 | . . . 1 . 1 . Terminals . | . . . . . . . Fabricators . | . . . . . . . Repair Stations . | . . . . . . . Recycling Units . | . . . . . . . Scanalyzers . | . . . . . . . Garrison Access 1 | . . . . . 1 . Total Hacks 2 | . . . 1 . 1 . Successful 2 | . . . 1 . 1 . Failed . | . . . . . . . Catastrophic . | . . . . . . . Database Lockouts . | . . . . . . . Manual 1 | . . . 1 . . . Terminals . | . . . . . . . Fabricators . | . . . . . . . Repair Stations . | . . . . . . . Recycling Units . | . . . . . . . Scanalyzers . | . . . . . . . Garrison Access 1 | . . . . . 1 . Terminal Hacks 1 | . . . 1 . . . Derelict Proto ID Bank 1 | . . . 1 . . . Fabricator Hacks . | . . . . . . . Repair Station Hacks . | . . . . . . . Recycling Unit Hacks . | . . . . . . . Scanalyzer . | . . . . . . . Garrison Access Hacks 1 | . . . . . 1 . Unlock Access 1 | . . . . . 1 . Unauthorized Hacks . | . . . . . . . Terminals . | . . . . . . . Fabricators . | . . . . . . . Repair Stations . | . . . . . . . Recycling Units . | . . . . . . . Scanalyzers . | . . . . . . . Garrison Access . | . . . . . . . Data Cores Recovered . | . . . . . . . Used . | . . . . . . . Hacking Detections 1 | . . . . . 1 . Full Trace Events . | . . . . . . . Feedback Events . | . . . . . . . Feedback Blocked . | . . . . . . . Robot Schematics Acquired . | . . . . . . . Robots Built . | . . . . . . . Authchips . | . . . . . . . Time . | . . . . . . . Total Robot Build Rating . | . . . . . . . Part Schematics Acquired . | . . . . . . . Parts Built . | . . . . . . . Authchips . | . . . . . . . Time . | . . . . . . . Total Part Build Rating . | . . . . . . . Parts Repaired . | . . . . . . . Time . | . . . . . . . Parts Recycled . | . . . . . . . Recycled Matter . | . . . . . . . Retrieved Matter . | . . . . . . . Retrieved Components . | . . . . . . . Parts Scanalyzed . | . . . . . . . Part Schematics Acquired . | . . . . . . . Parts Damaged . | . . . . . . . Bothacking | -11 -10 -10 -10 -9 -8 -8 ------------ Run | Yrd Mat Min Exi Min Mat Gar Used RIF Installer . | . . . . . . . Robots Hacked . | . . . . . . . Non-combat . | . . . . . . . Combat . | . . . . . . . Robot Hacks Applied . | . . . . . . . Relay Couplers Released . | . . . . . . . Fabnet Peak Effective % . | . . . . . . . Robots Rewired . | . . . . . . . Allies Hacked . | . . . . . . . Hacks Repelled . | . . . . . . . Allies | -11 -10 -10 -10 -9 -8 -8 -------- Run | Yrd Mat Min Exi Min Mat Gar Total Allies . | . . . . . . . Largest Group . | . . . . . . . Highest-Rated Group . | . . . . . . . Highest-Rated Ally . | . . . . . . . Total Orders . | . . . . . . . Ally Attacks . | . . . . . . . Total Damage . | . . . . . . . Kills . | . . . . . . . Allies Corrupted . | . . . . . . . Allies Melted . | . . . . . . . Intel | -11 -10 -10 -10 -9 -8 -8 ------- Run | Yrd Mat Min Exi Min Mat Gar Robot Analysis Total . | . . . . . . . Derelict Logs Recovered 3 | . . 3 . . . . Drone Launches . | . . . . . . . Drone Recoveries . | . . . . . . . Exploration | -11 -10 -10 -10 -9 -8 -8 ------------- Run | Yrd Mat Min Exi Min Mat Gar Turns Passed 2116 | 152 214 1002 239 43 115 351 Spaces Moved 1350 | 80 119 726 227 32 88 78 Core 15 | 13 . . . . . 2 Treads 414 | 67 119 216 . . . 12 Legs . | . . . . . . . Wheels 921 | . . 510 227 32 88 64 Hover . | . . . . . . . Flight . | . . . . . . . Fastest Speed 50 | 50 160 105 105 105 105 105 Average Speed 123 | 142 160 121 105 105 107 155 Slowest Speed 750 | 160 160 160 105 105 108 750 Overloaded Moves . | . . . . . . . Propulsion Burnouts . | . . . . . . . Robots Hopped . | . . . . . . . Cave-ins Triggered . | . . . . . . . Exploration Rate (%) 29 | 4 25 93 41 15 9 18 Regions Visited 6 Branch Regions 3 Pre-discovered Areas 1 | . . 1 . . . . Known Exits Taken 2 | . . . 1 . 1 . Unknown Exits Taken 4 | 1 1 1 . 1 . . Scrap Searched 2 | . . 2 . . . . Spaces Dug . | . . . . . . . Terrain Destroyed 42 | . . 27 . . . 15 Melee . | . . . . . . . Projectile . | . . . . . . . AOE 42 | . . 27 . . . 15 Terrain Rammed . | . . . . . . . Walls Destroyed . | . . . . . . . Machines Disabled . | . . . . . . . Actions | -11 -10 -10 -10 -9 -8 -8 --------- Run | Yrd Mat Min Exi Min Mat Gar Total 1665 | 99 128 795 227 41 108 267 Wait 193 | . . 23 . 8 13 149 Move 1344 | 79 118 725 226 31 87 78 Hop . | . . . . . . . Pick Up 11 | 2 2 4 1 1 1 . Fast Attach 10 | 7 . . . . . 3 Attach 14 | . . 8 . . 3 3 Detach 3 | . . 2 . . 1 . Swap 9 | 1 1 4 . . 2 1 Drop 4 | . . 2 . 1 1 . Fire 74 | 7 7 27 . . . 33 Melee . | . . . . . . . Ram . | . . . . . . . Kick . | . . . . . . . Crush 3 | 3 . . . . . . Escape Stasis . | . . . . . . . Rewire . | . . . . . . . Trap . | . . . . . . . Miscellaneous . | . . . . . . . Route ------- -11/Scrapyard -10/Materials -10/Mines (discovered 3 exits: [*Mat] / *Exi / Sub) -10/Exiles (discovered 2 exits: *Min x2) -9/Mines -8/Materials -8/Garrison History --------- Turn | Location | Event 71 | -11/Scrapyard | Discovered new exit (range 15) 153 | -11/Scrapyard | Entered Materials 314 | -10/Materials | Build established: Mutant 354 | -10/Materials | Discovered new exit (range 9) 367 | -10/Materials | Entered Mines 825 | -10/Mines | Identified exit to Subcaves 878 | -10/Mines | Destroyed YI-UF0 909 | -10/Mines | Lost 4 parts (1p2n1w) 931 | -10/Mines | Discovered new exit (range 7) 957 | -10/Mines | A weapon hastily lodged in a ceiling crevice suddenly fell to the ground 973 | -10/Mines | Learned location of Zion (-6) 1365 | -10/Mines | Deemed a non-threat by the Exiles lab entrance 1365 | -10/Mines | Discovered new exit (range 5) 1369 | -10/Mines | Entered Exiles 1370 | -10/Exiles | Identified exit to Mines 1395 | -10/Exiles | Met 8R-AWN 1414 | -10/Exiles | Met EX-HEX 1451 | -10/Exiles | Met EX-BIN 1463 | -10/Exiles | Aligned with FarCom system 1464 | -10/Exiles | Given EX-Vault access code 1489 | -10/Exiles | Opened EX-Vault 1503 | -10/Exiles | Found Trap Reconfigurator 1525 | -10/Exiles | Warned to stay clear of 0b10 Research branches 1608 | -10/Exiles | Left Exiles lab with Trap Reconfigurator 1608 | -10/Exiles | Entered Mines 1615 | -9/Mines | Received a Rocket Launcher from a helpful Derelict 1617 | -9/Mines | Met a Derelict bent on vengeance 1639 | -9/Mines | Discovered new exit (range 10) 1644 | -9/Mines | Assembled infested the area 1649 | -9/Mines | Assisted by a Guerilla fighting off Assembled 1651 | -9/Mines | Entered Materials 1651 | -8/Materials | Evolved 4 slots: Propulsion x2, Utility x2 1765 | -8/Materials | Identified exit to Garrison 1766 | -8/Materials | Entered Garrison 1980 | -8/Garrison | Triggered checkpoint 1985 | -8/Garrison | Triggered checkpoint 2048 | -8/Garrison | Destroyed 10 combat bots 2049 | -8/Garrison | Lost 8 parts (1p2n1u4w) 2059 | -8/Garrison | Core integrity fell below 50% 2095 | -8/Garrison | Core integrity fell below 20% 2117 | -8/Garrison | Destroyed by H-55 Commando with Gauss Rifle Last Messages --------------- 02046_ Stasis Trap reprogrammed. 02048_ Acquired Imp. Ion Engine. 02051_ Stasis Trap reprogrammed. 02056_ Lgt. Cannon destroyed. 02056_ Acquired 48 matter. 02062_ Acquired Beam Rifle. 02065_ Critical hit (Burn: +37). 02084_ G-50 Soldier destroyed. 02090_ Critical hit (Burn: +37). 02092_ Stasis Trap reprogrammed. 02094_ Critical hit (Burn: +37). 02096_ Imp. Ion Engine destroyed. 02098_ Critical hit (Burn: +37). 02100_ G-47 Trooper destroyed. 02100_ Lgt. Treads destroyed. 02110_ Overheating: System interference. 02110_ Trap Reconfigurator temporarily disabled. 02110_ Beam Rifle destroyed. 02112_ Acquired 62 matter. 02115_ G-47 Trooper heat short circuits Imp. Heat Sink. Map ----- +----------------------------------------------------+ | ?????????????????????????????????????????????????? | | ?????????????????????????????????????????????????? | | ?????????????????????????????????????????????????? | | ?????????????????????????????????????????????????? | | ?????????????????????????????????????????????????? | | ???#####?????????????????????????????????????????? | | ???# #?????????????????????????????????????????? | | ???# ###########???????????????????????????????? | | ???# #???????????????????????????????? | | ???# #???????????????????????????????? | | ???############ ####### #???????????????????????? | | ??????????????# #???????????????????????? | | ??????????????# #########???????????????????????? | | ??????????????# #???????????????????????????????? | | ??????????????# #???????????????????????????????? | | ??????????????# #???????????????????????????????? | | ??????????????# #???????????????????????????????? | | ??????????????# #???????????????????????????????? | | ??????????????# #???????????????????????????????? | | ######## #?????????????####??????????????? | | #?????????### = #???#??????????? | | ######## #??????### #%% ## ##?????????? | | ?????????# # # ######## % #?????????? | | ?????????# # % ????????? | | ?????????# [== h ????????? | | ?????????## ###########@g # ^^^##?????????????? | | ??????????#####???????###=% ## ## #?????????? | | ??????????????????????# ????????? | | ??????????????????????# ! ????????? | | ??????????????????????#% [ ????????? | | ??????????????????????# % ????????? | | ??????????????????????###% # ## #?????????? | | ???????????????????????? % # #??? #?????????? | | ????????????????????????# ?????????????? | | ???????????????????????? [ ???????????? | | ???????????????????????? = ??????????? | | ????????????????????????# # #####??????????? | | ????????????????????????? ## #??????????????? | | ????????????????????????? #?####??????????????? | | ???????????????Y????????? ##???????????????????? | | ????????????????????????? ##???????????????????? | | ?????????????????????????# #????????????????????? | | ?????????????????????????? #????????????????????? | | ?????????????????????????? #????????????????????? | | ?????????????????????????????????????????????????? | | ?????????????????????????????????????????????????? | | ?????????????????????????????????????????????????? | | ?????????????????????????????????????????????????? | | ?????????????????????????????????????????????????? | | ?????????????????????????????????????????????????? | +----------------------------------------------------+ Best States ------------- Heat Dissipation 31 Energy Generation 12 Energy Capacity 265 Matter Stores 299 Matter Capacity 300 Sight Range 16 Terrain Scan Density 10 Evasion (%) 40 Recoil Reduction 2 Item Schematics ----------------- None Robot Schematics ------------------ None Fabricated ------------ Nothing Alien Tech Used ----------------- None Achievements -------------- None Challenges ------------ None Game ------ Seed LightPulseMeganuke Manual? 0 Play Time 00:11:58 Cumulative 52.5 hours Start 2025.04.26 @ 00:58:40 End 2025.04.26 @ 01:08:51 Sessions 1 Manual Loads 0 Difficulty Rogue Special Mode None Game No. 156 Rogue 156 Adventurer 0 Explorer 0 Win Type - Total 0 Types 0/0/0/0/0/0/0/0/0 Lore% 14 Gallery% 39 Achievement% 32 Wizard Run 0 Options --------- Layout 0 ASCII 0 Keyboard 0 Movement Numpad Keybinds 0 Fullscreen 2 Font 18/Terminus Map View 76x50 Zoom Use 0% Tactical HUD 1 Map Filters NONE Filters NONE Steam 1 RUN: 56cbe567-af44-4b93-8048-a8f2ba8388fc